bitfinex/quotes_SOLUSD_20241019
["timestamp","ask_amount","ask_price","bid_price","bid_amount"]
[1729298653943,23.776884,154.54,154.46,15.8361]
[1729298655231,39.612984,154.54,154.46,15.8361]
[1729298661357,23.776884,154.52,154.46,15.8361]
[1729298670464,23.776884,154.52,154.44,6.4912]
[1729298679190,23.776884,154.5,154.41,22.084]
[1729298707518,23.776884,154.48,154.41,22.084]
[1729298707718,23.776884,154.5,154.41,22.084]
[1729298708121,43.186884,154.5,154.41,22.084]
[1729298708427,43.186884,154.5,154.41,15.6623]
[1729298709837,23.776884,154.5,154.41,15.6623]
[1729298712421,23.776884,154.5,154.42,6.4985]
[1729298716532,6.73021214,154.51,154.42,6.4985]
[1729298716721,6.73021214,154.51,154.43,20.0]
[1729298716920,6.73021214,154.51,154.41,7.55760525]
[1729298716921,6.73021214,154.51,154.45,6.309]
[1729298717229,6.5226,154.58,154.45,6.309]
[1729298717538,15.7251,154.56,154.45,6.309]
[1729298718848,23.776884,154.55,154.45,6.309]
[1729298719055,20.0,154.57,154.45,6.309]
[1729298719443,35.7251,154.57,154.45,6.309]
[1729298720355,23.776884,154.56,154.45,6.309]
[1729298731751,23.776884,154.56,154.46,20.0]
[1729298737172,6.73929828,154.58,154.49,6.3096]
[1729298737341,15.4869,154.59,154.49,6.3096]
[1729298738234,23.776884,154.58,154.49,6.3096]
[1729298740564,23.776884,154.58,154.47,15.3522]
[1729298744768,30.245984,154.58,154.47,15.3522]
[1729298746259,23.776884,154.58,154.47,15.3522]
[1729298749059,23.776884,154.56,154.47,15.3522]
[1729298749380,20.0,154.55,154.47,15.3522]
[1729298749581,23.776884,154.54,154.47,15.3522]
[1729298752256,38.983384,154.54,154.45,6.3096]
[1729298752659,6.0881,154.57,154.46,16.6237]
[1729298752972,23.776884,154.56,154.46,16.6237]
[1729298756161,6.0881,154.57,154.47,20.0]
[1729298756162,23.776884,154.57,154.47,20.0]
[1729298756361,15.2065,154.58,154.47,20.0]
[1729298756979,13.35709405,154.61,154.49,20.0]
[1729298757864,23.776884,154.6,154.49,20.0]
[1729298761865,23.776884,154.6,154.5,16.6661]
[1729298762194,6.73889405,154.61,154.52,6.4731]
[1729298762490,7.70421914,154.65,154.55,20.0]
[1729298762691,1.12051914,154.65,154.55,20.0]
[1729298762985,31.8238,154.66,154.55,20.0]
[1729298763194,6.73248426,154.68,154.57,20.0]
[1729298763399,15.3852,154.7,154.57,20.0]
[1729298765490,23.776884,154.69,154.57,20.0]
[1729298769691,30.241584,154.69,154.57,20.0]
[1729298769882,20.0,154.68,154.56,6.4731]
[1729298770094,23.776884,154.67,154.56,6.4731]
[1729298770274,30.067984,154.67,154.56,6.4731]
[1729298770803,20.0,154.66,154.56,6.4731]
[1729298770973,23.776884,154.65,154.56,6.4731]
[1729298772007,23.776884,154.66,154.56,6.4731]
[1729298773005,15.3852,154.7,154.57,20.0]
[1729298773695,15.3852,154.7,154.58,15.8029]
[1729298773881,15.3852,154.7,154.59,20.0]
[1729298774403,23.776884,154.69,154.59,20.0]
[1729298774782,15.3852,154.7,154.59,20.0]
[1729298776298,23.776884,154.69,154.59,20.0]
[1729298776678,30.5121981,154.69,154.59,20.0]
[1729298779800,30.5121981,154.69,154.58,15.8029]
[1729298780101,23.776884,154.67,154.56,6.4731]
[1729298806315,43.186884,154.67,154.56,6.4731]
[1729298806521,23.776884,154.67,154.56,6.4731]
[1729298811309,7.85541628,154.69,154.57,20.0]
[1729298811505,7.85541628,154.69,154.58,15.3645]
[1729298811721,21.12010218,154.69,154.58,15.3645]
[1729298811907,1.12010218,154.69,154.58,15.3645]
[1729298812313,28.58255203,154.7,154.58,15.3645]
[1729298812499,23.776884,154.69,154.58,15.3645]
[1729298816503,23.776884,154.69,154.59,20.0]
[1729298816709,15.3852,154.7,154.6,6.4402]
[1729298819311,10.09815253,154.73,154.6,6.4402]
[1729298819515,23.776884,154.71,154.6,6.4402]
[1729298819812,20.0,154.72,154.6,6.4402]
[1729298821035,23.776884,154.71,154.6,6.4402]
[1729298821735,23.776884,154.72,154.6,6.4402]
[1729298821907,23.776884,154.72,154.62,16.3538]
[1729298822332,23.776884,154.73,154.62,16.3538]
[1729298822629,23.776884,154.73,154.63,20.0]
[1729298823428,23.776884,154.73,154.64,6.564]
[1729298825831,16.1938,154.74,154.64,6.564]
[1729298826033,20.0,154.78,154.65,20.0]
[1729298826034,16.1938,154.78,154.65,20.0]
[1729298826418,16.1938,154.78,154.67,20.0]
[1729298827434,23.776884,154.77,154.66,16.3538]
[1729298829425,23.776884,154.77,154.67,20.0]
[1729298834236,30.238084,154.77,154.66,16.3538]
[1729298835339,23.776884,154.77,154.66,16.3538]
[1729298852356,30.238284,154.77,154.66,16.3538]
[1729298852738,36.96898475,154.77,154.66,16.3538]
[1729298857165,23.776884,154.75,154.66,16.3538]
[1729298857366,36.96898475,154.77,154.66,16.3538]
[1729298867250,23.776884,154.75,154.66,16.3538]
[1729298867563,41.76929226,154.77,154.66,16.3538]
[1729298867762,36.97359694,154.77,154.66,16.3538]
[1729298868277,30.51219694,154.77,154.66,16.3538]
[1729298868476,23.776884,154.77,154.66,16.3538]
[1729298885313,27.14352097,154.77,154.66,16.3538]
[1729298888886,33.60482097,154.77,154.66,16.3538]
[1729298890593,3.36663697,154.76,154.66,16.3538]
[1729298890915,23.776884,154.75,154.64,6.564]
[1729298891214,15.6253,154.74,154.64,6.564]
[1729298891524,23.776884,154.73,154.64,6.564]
[1729298903929,43.21253734,154.76,154.65,16.1904]
[1729298904095,19.87473697,154.78,154.65,16.1904]
[1729298904428,35.71633697,154.78,154.65,16.1904]
[1729298904711,16.5081,154.78,154.65,16.1904]
[1729298905413,23.776884,154.76,154.65,16.1904]
[1729298905719,23.776884,154.77,154.65,16.1904]
[1729298909515,23.776884,154.77,154.65,22.6674]
[1729298910312,23.776884,154.77,154.65,16.1904]
[1729298926239,30.238084,154.77,154.65,16.1904]
[1729298926447,23.776884,154.75,154.65,16.1904]
[1729298926739,23.776884,154.75,154.64,15.39379145]
[1729298926740,23.776884,154.73,154.64,15.39379145]
[1729298935332,23.776884,154.73,154.64,8.82979145]
[1729298935748,20.0,154.72,154.64,8.82979145]
[1729298936055,23.776884,154.73,154.64,8.82979145]
[1729298936232,23.776884,154.71,154.64,8.82979145]
[1729298938457,20.0,154.7,154.64,8.82979145]
[1729298938637,23.776884,154.69,154.57,22.57567774]
[1729298938961,23.776884,154.69,154.57,15.8309]
[1729298939746,23.776884,154.69,154.58,20.0]
[1729298945539,16.6248,154.7,154.59,6.0417]
[1729298945740,16.6248,154.7,154.6,20.0]
[1729298946744,23.776884,154.69,154.6,20.0]
[1729298952462,20.0,154.68,154.57,24.72552558]
[1729298952760,23.776884,154.67,154.57,24.72552558]
[1729298955544,6.2277,154.69,154.57,24.72552558]
[1729298955745,6.2277,154.69,154.58,20.0]
[1729298955947,23.776884,154.68,154.58,20.0]
[1729298962050,16.6248,154.7,154.58,20.0]
[1729298962250,23.776884,154.69,154.58,20.0]
[1729298968570,23.776884,154.67,154.57,24.72552558]
[1729298976556,23.776884,154.65,154.57,8.89462558]
[1729298981362,23.776884,154.61,154.57,8.89462558]
[1729298981561,23.776884,154.61,154.52,6.6626]
[1729298983890,23.776884,154.61,154.5,20.0]
[1729299004391,15.7572,154.62,154.5,20.0]
[1729299005646,23.776884,154.61,154.5,20.0]
[1729299005812,23.776884,154.61,154.51,6.3276]
[1729299006191,15.7572,154.62,154.51,6.3276]
[1729299006507,26.3202,154.64,154.52,15.4171]
[1729299008007,23.776884,154.63,154.52,15.4171]
[1729299008604,23.776884,154.63,154.53,20.0]
[1729299009796,23.776884,154.65,154.54,6.259]
[1729299010005,15.176,154.66,154.56,15.6781]
[1729299010304,15.9942,154.7,154.57,20.0]
[1729299011393,15.9942,154.7,154.58,6.259]
[1729299011795,23.776884,154.69,154.58,6.259]
[1729299012915,23.776884,154.69,154.59,20.0]
[1729299014100,15.9942,154.7,154.59,20.0]
[1729299015093,23.776884,154.69,154.59,20.0]
[1729299015313,23.776884,154.69,154.58,6.259]
[1729299015522,23.776884,154.69,154.56,15.6781]
[1729299016015,23.776884,154.67,154.56,15.6781]
[1729299016229,23.776884,154.65,154.54,6.259]
[1729299017206,15.9942,154.66,154.54,6.259]
[1729299017796,15.9942,154.66,154.55,20.0]
[1729299038029,23.776884,154.65,154.55,20.0]
[1729299047031,29.870884,154.65,154.54,6.259]
[1729299047337,29.870884,154.65,154.52,15.6781]
[1729299047514,36.337084,154.65,154.53,20.0]
[1729299047938,29.870884,154.65,154.53,20.0]
[1729299052041,23.776884,154.63,154.52,15.6781]
[1729299061953,15.1265,154.62,154.52,15.6781]
[1729299062152,23.776884,154.61,154.52,15.6781]
[1729299083371,23.776884,154.59,154.5,16.17779227]
[1729299092584,23.776884,154.6,154.5,16.17779227]
[1729299092787,43.776884,154.61,154.5,16.17779227]
[1729299094364,43.776884,154.61,154.5,9.62959227]
[1729299094579,6.1034,154.6,154.5,9.62959227]
[1729299094777,23.776884,154.59,154.5,9.62959227]
[1729299097685,23.776884,154.6,154.5,9.62959227]
[1729299097891,23.776884,154.6,154.51,6.6404]
[1729299098197,23.776884,154.6,154.52,15.7864]
[1729299102408,23.776884,154.6,154.51,6.6404]
[1729299113004,23.776884,154.6,154.5,9.62959227]
[1729299116617,20.0,154.59,154.5,9.62959227]
[1729299116791,23.776884,154.58,154.5,9.62959227]
[1729299126122,23.776884,154.58,154.48,15.7864]
[1729299150128,30.245984,154.58,154.48,15.7864]
[1729299150344,23.776884,154.56,154.48,15.7864]
[1729299151835,23.776884,154.56,154.47,6.0835]
[1729299152623,30.247084,154.56,154.45,20.0]
[1729299153024,36.557384,154.56,154.45,20.0]
[1729299153521,23.776884,154.54,154.44,16.3049]
[1729299161042,35.12,154.53,154.44,16.3049]
[1729299161435,23.776884,154.52,154.44,16.3049]
[1729299161854,23.776884,154.52,154.4,16.1695752]
[1729299162028,23.776884,154.5,154.4,16.1695752]
[1729299163656,30.249684,154.5,154.4,16.1695752]
[1729299164026,23.776884,154.48,154.4,16.1695752]
[1729299164557,23.776884,154.48,154.4,0.6321752]
[1729299172333,30.250284,154.48,154.4,0.6321752]
[1729299174264,36.99223456,154.48,154.4,0.6321752]
[1729299174965,30.51883456,154.48,154.4,0.6321752]
[1729299176536,23.776884,154.45,154.4,0.6321752]
[1729299177247,43.776884,154.46,154.4,0.6321752]
[1729299178660,15.0431,154.43,154.4,0.6321752]
[1729299178840,23.776884,154.42,154.4,0.6321752]
[1729299186158,23.776884,154.43,154.4,0.6321752]
[1729299186855,6.74451597,154.46,154.4,0.6321752]
[1729299188258,43.776884,154.47,154.4,0.6321752]
[1729299189349,69.670784,154.47,154.4,0.6321752]
[1729299190676,43.776884,154.47,154.4,0.6321752]
[1729299190979,15.8023,154.48,154.4,0.6321752]
[1729299191478,16.296,154.5,154.4,0.6321752]
[1729299191676,6.4311198,154.51,154.41,6.3588]
[1729299191890,22.7271198,154.51,154.41,6.3588]
[1729299192058,23.776884,154.5,154.41,6.3588]
[1729299192567,30.52004494,154.5,154.41,6.3588]
[1729299193377,23.776884,154.48,154.41,6.3588]
[1729299193575,23.776884,154.48,154.42,15.4673]
[1729299193762,23.776884,154.49,154.42,15.4673]
[1729299200369,23.776884,154.5,154.42,15.4673]
[1729299210467,39.244184,154.5,154.42,15.4673]
[1729299213475,6.74354347,154.51,154.42,15.4673]
[1729299213796,20.0,154.52,154.42,15.4673]
[1729299214694,23.776884,154.51,154.42,15.4673]
[1729299216977,23.776884,154.52,154.42,15.4673]
[1729299226402,20.0,154.49,154.42,15.4673]
[1729299226587,23.776884,154.48,154.41,6.3588]
[1729299230690,6.74364242,154.51,154.41,6.3588]
[1729299232111,23.776884,154.5,154.41,6.3588]
[1729299253817,23.776884,154.5,154.42,15.3409]
[1729299262239,23.776884,154.52,154.42,15.3409]
[1729299262628,23.776884,154.52,154.43,20.0]
[1729299274720,40.245584,154.52,154.43,20.0]
[1729299305950,23.776884,154.52,154.43,20.0]
[1729299307058,23.776884,154.52,154.45,20.0]
[1729299307257,23.776884,154.52,154.43,20.0]
[1729299307777,6.73911221,154.55,154.44,6.2568]
[1729299307977,16.61,154.56,154.46,15.304]
[1729299308157,16.61,154.56,154.47,20.0]
[1729299311679,6.74114681,154.58,154.47,20.0]
[1729299311856,23.776884,154.57,154.47,20.0]
[1729299327169,23.776884,154.57,154.49,20.0]
[1729299327369,23.776884,154.57,154.47,20.0]
[1729299332185,15.3178,154.56,154.47,20.0]
[1729299332390,23.776884,154.55,154.47,20.0]
[1729299346103,23.776884,154.55,154.45,20.0]
[1729299346301,30.247484,154.55,154.45,20.0]
[1729299346503,36.99028549,154.55,154.45,20.0]
[1729299348084,49.93968549,154.55,154.45,20.0]
[1729299348415,23.776884,154.51,154.44,20.0]
[1729299349101,23.776884,154.51,154.42,15.2837]
[1729299349892,15.6881,154.52,154.42,15.2837]
[1729299350197,15.6881,154.52,154.43,20.0]
[1729299350387,6.74280149,154.55,154.44,6.461]
[1729299350388,23.776884,154.54,154.44,6.461]
[1729299350583,23.776884,154.54,154.45,20.0]
[1729299358087,23.776884,154.55,154.45,20.0]
[1729299367107,23.776884,154.55,154.46,16.6453]
[1729299367322,23.776884,154.55,154.47,20.0]
[1729299373702,15.6027,154.56,154.47,20.0]
[1729299374114,27.0115298,154.59,154.47,20.0]
[1729299374415,23.776884,154.58,154.47,20.0]
[1729299374624,23.776884,154.58,154.48,6.4533]
[1729299374822,1.1227298,154.59,154.49,20.0]
[1729299375116,28.45984679,154.6,154.49,20.0]
[1729299376321,23.776884,154.59,154.49,20.0]
[1729299377718,43.196884,154.59,154.49,20.0]
[1729299378021,23.776884,154.59,154.49,20.0]
[1729299387812,30.245584,154.59,154.49,20.0]
[1729299398732,6.4696,154.57,154.49,20.0]
[1729299398933,23.776884,154.56,154.49,20.0]
[1729299399517,23.776884,154.57,154.49,20.0]
[1729299444276,23.776884,154.58,154.49,20.0]
[1729299446674,23.776884,154.55,154.49,20.0]
[1729299446969,23.776884,154.55,154.46,16.6453]
[1729299446970,23.776884,154.55,154.47,20.0]
[1729299461384,18.33601724,154.58,154.49,20.0]
[1729299461683,6.74145265,154.58,154.49,20.0]
[1729299462783,23.776884,154.57,154.49,20.0]
[1729299470592,23.776884,154.58,154.49,20.0]
[1729299491696,23.776884,154.59,154.49,20.0]
[1729299496103,23.776884,154.59,154.5,15.9698]
[1729299496307,23.776884,154.59,154.51,20.0]
[1729299530943,43.196884,154.59,154.51,20.0]
[1729299531144,23.776884,154.59,154.51,20.0]
[1729299544951,23.776884,154.59,154.51,18.5]
[1729299560759,43.196884,154.59,154.51,18.5]
[1729299560966,45.270084,154.56,154.45,15.828]
[1729299561338,23.776884,154.54,154.45,15.828]
[1729299561537,45.270084,154.56,154.45,15.828]
[1729299562858,45.270084,154.56,154.46,20.0]
[1729299563050,23.776884,154.56,154.46,30.23084713]
[1729299563250,23.776884,154.57,154.47,6.4695]
[1729299563452,23.776884,154.57,154.48,20.0]
[1729299585268,23.776884,154.55,154.47,20.0]
[1729299590587,23.776884,154.55,154.46,20.0]
[1729299609305,30.247384,154.55,154.46,20.0]
[1729299614986,43.196884,154.55,154.46,20.0]
[1729299615212,23.776884,154.53,154.46,20.0]
[1729299622688,23.776884,154.54,154.46,20.0]
[1729299628314,43.196884,154.54,154.46,20.0]
[1729299628514,49.668084,154.54,154.46,20.0]
[1729299631918,49.668084,154.54,154.45,15.828]
[1729299631919,23.776884,154.52,154.45,15.828]
[1729299632913,23.776884,154.52,154.45,13.328]
[1729299633923,23.776884,154.52,154.44,20.0]
[1729299636811,30.248484,154.52,154.43,6.1143]
[1729299636997,45.982684,154.52,154.43,6.1143]
[1729299638223,6.4721,154.51,154.43,6.1143]
[1729299638402,23.776884,154.5,154.42,20.0]
[1729299652327,30.249384,154.5,154.42,20.0]
[1729299652513,23.776884,154.5,154.42,20.0]
[1729299652827,15.7342,154.52,154.43,16.89472528]
[1729299654025,23.776884,154.51,154.43,16.89472528]
[1729299660614,23.776884,154.51,154.44,20.0]
[1729299660818,12.70737767,154.55,154.46,20.0]
[1729299661121,42.0573,154.56,154.46,20.0]
[1729299661317,22.0573,154.56,154.46,20.0]
[1729299661509,28.79626261,154.56,154.46,20.0]
[1729299662009,23.776884,154.55,154.46,20.0]
[1729299664139,30.247584,154.55,154.46,20.0]
[1729299668855,30.248184,154.53,154.46,20.0]
[1729299669339,30.248184,154.53,154.45,16.255]
[1729299670038,30.248184,154.53,154.43,16.89472528]
[1729299670235,30.248184,154.53,154.44,20.0]
[1729299683081,23.776884,154.51,154.44,20.0]
[1729299683363,30.248184,154.53,154.44,20.0]
[1729299693174,23.776884,154.51,154.44,20.0]
[1729299693358,30.248184,154.53,154.44,20.0]
[1729299693561,23.776884,154.53,154.44,20.0]
[1729299698273,6.73971086,154.55,154.46,20.0]
[1729299698457,15.5873,154.56,154.46,20.0]
[1729299698773,1.12115025,154.57,154.48,20.0]
[1729299699254,42.72235476,154.58,154.48,20.0]
[1729299700280,23.776884,154.57,154.48,20.0]
[1729299702657,28.19071059,154.6,154.5,20.0]
[1729299704074,23.776884,154.59,154.5,20.0]
[1729299704582,30.245984,154.59,154.5,20.0]
[1729299705274,6.4691,154.58,154.5,20.0]
[1729299705577,23.776884,154.57,154.5,20.0]
[1729299720584,30.246684,154.57,154.48,20.0]
[1729299720778,23.776884,154.55,154.48,20.0]
[1729299721283,23.776884,154.55,154.47,6.1767]
[1729299722783,23.776884,154.55,154.48,20.0]
[1729299729896,23.776884,154.56,154.48,20.0]
[1729299734496,6.73540078,154.58,154.5,20.0]
[1729299734706,53.03679382,154.6,154.5,20.0]
[1729299734707,47.9245,154.6,154.5,20.0]
[1729299734888,67.3445,154.6,154.5,20.0]
[1729299735074,74.07864596,154.6,154.5,20.0]
[1729299735704,23.776884,154.56,154.49,15.0761]
[1729299735876,40.395384,154.56,154.47,6.1767]
[1729299736203,23.776884,154.54,154.47,6.1767]
[1729299737779,23.776884,154.55,154.47,6.1767]
[1729299740610,23.4042896,154.56,154.47,6.1767]
[1729299741218,23.4042896,154.56,154.48,20.0]
[1729299741884,23.776884,154.55,154.48,20.0]
[1729299751125,6.73660045,154.58,154.48,20.0]
[1729299751328,17.32813733,154.59,154.48,20.0]
[1729299751506,11.58059382,154.59,154.48,20.0]
[1729299752215,35.90584895,154.6,154.48,20.0]
[1729299752417,23.776884,154.59,154.48,20.0]
[1729299753112,23.776884,154.59,154.5,20.0]
[1729299754225,11.58059382,154.61,154.52,20.0]
[1729299754527,6.4672,154.63,154.52,20.0]
[1729299755323,23.776884,154.62,154.52,20.0]
[1729299755534,22.276884,154.62,154.52,20.0]
[1729299756007,21.776884,154.62,154.52,20.0]
[1729299771457,23.776884,154.6,154.52,20.0]
[1729299774827,23.776884,154.59,154.52,20.0]
[1729299778783,46.729184,154.59,154.5,20.0]
[1729299780352,40.260484,154.59,154.5,20.0]
[1729299780645,23.776884,154.57,154.5,20.0]
[1729299787257,23.776884,154.58,154.5,20.0]
[1729299794753,43.196884,154.58,154.48,20.0]
[1729299795066,23.776884,154.56,154.48,20.0]
[1729299799672,23.776884,154.56,154.5,20.0]
[1729299808252,23.776884,154.57,154.5,20.0]
[1729299809254,23.776884,154.58,154.5,20.0]
[1729299829174,23.776884,154.58,154.52,20.0]
[1729299834599,23.776884,154.59,154.52,20.0]
[1729299834901,23.776884,154.6,154.52,20.0]
[1729299837993,23.776884,154.61,154.52,20.0]
[1729299838198,7.84442725,154.62,154.52,20.0]
[1729299838383,33.53278886,154.65,154.54,20.0]
[1729299838585,1.11968276,154.65,154.54,20.0]
[1729299839098,16.58447349,154.66,154.54,20.0]
[1729299839483,13.19016369,154.66,154.54,20.0]
[1729299839696,23.776884,154.65,154.54,20.0]
[1729299843321,30.243384,154.65,154.54,20.0]
[1729299844690,6.72436369,154.66,154.54,20.0]
[1729299844691,23.776884,154.63,154.54,20.0]
[1729299845686,23.776884,154.61,154.54,20.0]
[1729299846012,23.776884,154.61,154.53,16.3938]
[1729299852485,23.776884,154.61,154.54,20.0]
[1729299852700,39.44997906,154.66,154.54,20.0]
[1729299852992,35.7777,154.66,154.56,20.0]
[1729299853219,15.7777,154.66,154.56,20.0]
[1729299853405,22.2435,154.66,154.56,20.0]
[1729299854597,23.776884,154.65,154.56,20.0]
[1729299856802,30.243284,154.65,154.56,20.0]
[1729299857600,23.776884,154.65,154.56,20.0]
[1729299857801,23.776884,154.63,154.56,20.0]
[1729299858222,23.776884,154.64,154.56,20.0]
[1729299859705,23.776884,154.65,154.56,20.0]
[1729299865425,30.243084,154.65,154.56,20.0]
[1729299866610,30.243984,154.63,154.55,6.2062]
[1729299866808,23.776884,154.61,154.53,16.3938]
[1729299867416,40.032784,154.61,154.51,6.5115]
[1729299868531,46.500684,154.61,154.51,6.5115]
[1729299869924,46.500684,154.61,154.52,20.0]
[1729299873234,40.032784,154.61,154.52,20.0]
[1729299873434,23.776884,154.61,154.52,20.0]
[1729299874022,7.84811375,154.64,154.52,20.0]
[1729299874337,6.72771354,154.64,154.54,20.0]
[1729299874643,15.0413,154.65,154.54,20.0]
[1729299875340,23.776884,154.64,154.54,20.0]
[1729299884943,23.776884,154.64,154.56,20.0]
[1729299885147,23.776884,154.64,154.54,20.0]
[1729299891449,15.0413,154.65,154.55,6.1128]
[1729299891645,15.0413,154.65,154.56,20.0]
[1729299892938,23.776884,154.67,154.56,20.0]
[1729299894930,23.776884,154.67,154.58,20.0]
[1729299895131,23.776884,154.68,154.56,20.0]
[1729299900155,23.776884,154.68,154.58,20.0]
[1729299901037,35.9599,154.69,154.58,20.0]
[1729299901354,15.9599,154.69,154.58,20.0]
[1729299902448,23.776884,154.68,154.58,20.0]
[1729299904761,15.9599,154.69,154.6,20.0]
[1729299906157,23.776884,154.71,154.6,20.0]
[1729299907152,23.776884,154.72,154.62,20.0]
[1729299923573,23.776884,154.72,154.63,6.6265]
[1729299923886,23.776884,154.72,154.64,20.0]
[1729299924375,15.9599,154.73,154.64,20.0]
[1729299935584,15.9599,154.73,154.66,20.0]
[1729299935789,15.9599,154.73,154.64,20.0]
[1729299945688,15.9599,154.73,154.66,20.0]
[1729299945863,15.9599,154.73,154.64,20.0]
[1729299946902,23.776884,154.72,154.64,20.0]
[1729299947075,23.776884,154.72,154.62,20.0]
[1729299947280,23.776884,154.72,154.61,26.14010678]
[1729299947570,30.240284,154.72,154.61,26.14010678]
[1729299947881,23.776884,154.7,154.61,10.22090678]
[1729299948087,23.776884,154.68,154.61,10.22090678]
[1729299949481,23.776884,154.68,154.62,20.0]
[1729299961596,15.5314,154.71,154.62,35.1967]
[1729299962909,23.776884,154.7,154.62,35.1967]
[1729299963084,26.4351,154.73,154.62,35.1967]
[1729299963085,6.4351,154.73,154.62,35.1967]
[1729299963284,23.09027068,154.75,154.64,20.0]
[1729299964695,23.776884,154.74,154.64,20.0]
[1729299965889,23.776884,154.74,154.66,20.0]
[1729299966201,23.776884,154.74,154.64,20.0]
[1729299967705,16.3642,154.75,154.65,15.1967]
[1729299967880,23.776884,154.76,154.66,20.0]
[1729299969093,27.9376493,154.79,154.68,20.0]
[1729299969413,16.3642,154.79,154.68,20.0]
[1729299978198,16.3642,154.79,154.7,20.0]
[1729299978827,26.72336203,154.82,154.7,20.0]
[1729299979001,6.72336203,154.82,154.7,20.0]
[1729299979199,15.078,154.83,154.69,16.3146]
[1729299979200,15.078,154.83,154.72,20.0]
[1729299980602,23.776884,154.82,154.72,20.0]
[1729299983223,30.336784,154.8,154.69,16.3146]
[1729299984617,30.336784,154.8,154.7,20.0]
[1729299988428,23.776884,154.8,154.7,20.0]
[1729299990412,15.078,154.83,154.71,6.1854]
[1729299990613,23.776884,154.82,154.72,20.0]
[1729299994327,15.078,154.83,154.73,23.776884]
[1729299994510,6.72169037,154.86,154.76,26.1854]
[1729299994708,15.2344,154.89,154.76,26.1854]
[1729299994912,16.3532153,154.89,154.76,26.1854]
[1729299995410,22.8095153,154.89,154.76,26.1854]
[1729299995812,23.776884,154.88,154.76,26.1854]
[1729299999422,30.233584,154.88,154.76,26.1854]
[1729299999807,30.233584,154.88,154.78,20.0]
[1729300000329,30.233584,154.88,154.76,26.1854]
[1729300007827,23.776884,154.88,154.76,26.1854]
[1729300008912,23.776884,154.88,154.76,32.6524]
[1729300009213,23.776884,154.88,154.78,20.0]
[1729300009523,23.776884,154.88,154.77,23.776884]
[1729300009725,23.776884,154.88,154.78,20.0]
[1729300011312,23.776884,154.88,154.77,20.0]
[1729300019839,23.776884,154.88,154.79,20.0]
[1729300020013,23.776884,154.88,154.77,20.0]
[1729300021915,23.776884,154.86,154.77,20.0]
[1729300022341,30.233584,154.88,154.77,20.0]
[1729300024737,30.233584,154.88,154.77,19.0]
[1729300044645,23.776884,154.88,154.77,19.0]
[1729300048362,30.233484,154.88,154.77,19.0]
[1729300060073,30.233484,154.88,154.79,20.0]
[1729300060260,30.233484,154.88,154.77,19.0]
[1729300061681,23.776884,154.86,154.77,19.0]
[1729300061977,30.233484,154.88,154.77,19.0]
[1729300063967,23.776884,154.88,154.77,19.0]
[1729300065386,23.776884,154.88,154.77,26.62336588]
[1729300065569,15.2344,154.89,154.79,20.0]
[1729300066772,23.776884,154.88,154.79,20.0]
[1729300068160,4.49309891,154.91,154.81,20.0]
[1729300068475,3.37398742,154.91,154.81,20.0]
[1729300069075,10.09728245,154.92,154.81,20.0]
[1729300069274,23.776884,154.91,154.81,20.0]